bitfinex/quotes_ETHUSD_20250705
["timestamp","ask_amount","ask_price","bid_price","bid_amount"]
[1751682786148,34.53565165,2509.0,2508.4,0.0434381]
[1751682786149,3.98644608,2508.5,2508.4,0.0434381]
[1751682786349,62.9459019,2508.5,2508.4,0.0434381]
[1751682786861,24.2879019,2508.5,2508.4,0.0434381]
[1751682787030,32.3969019,2508.5,2508.4,0.0434381]
[1751682787234,35.4622915,2508.5,2508.4,0.0434381]
[1751682787647,66.0122915,2508.5,2508.4,0.0434381]
[1751682788140,76.0122915,2508.5,2508.4,1e-08]
[1751682788867,76.0142915,2508.5,2508.4,1e-08]
[1751682789239,76.49240526,2508.5,2508.4,1e-08]
[1751682789669,76.0142915,2508.5,2508.4,1e-08]
[1751682790066,4.75364082,2508.0,2507.9,0.0434381]
[1751682790239,53.38439664,2508.0,2507.9,0.0434381]
[1751682790438,63.38439664,2508.0,2507.9,0.0434381]
[1751682790656,63.38539664,2508.0,2507.9,0.0434381]
[1751682790857,33.38439664,2508.0,2507.9,0.0434381]
[1751682791064,36.30801549,2508.0,2507.9,0.0434381]
[1751682791370,66.30801549,2508.0,2507.9,0.0434381]
[1751682791589,66.30801549,2508.0,2507.4,0.0434381]
[1751682791590,5.30443589,2507.5,2507.4,0.0434381]
[1751682791770,61.41119171,2507.5,2507.4,0.0434381]
[1751682792471,61.41119171,2507.5,2506.6,0.0529569]
[1751682792472,3.98923146,2506.8,2506.6,0.0529569]
[1751682792673,18.11075582,2506.7,2506.6,0.0529569]
[1751682792881,7.97925392,2506.5,2505.9,0.0582811]
[1751682793037,3.99292171,2504.5,2503.2,3.99488654]
[1751682793243,7.62468876,2504.4,2503.2,0.0432195]
[1751682793439,0.55,2503.4,2503.2,0.0432195]
[1751682793655,0.20797988,2503.5,2503.2,0.0432195]
[1751682793873,0.20797988,2503.5,2503.2,4.03803828]
[1751682794167,0.20797988,2503.5,2503.4,3.99456738]
[1751682794370,0.57367041,2503.5,2503.2,0.0432195]
[1751682794572,0.36569053,2503.4,2503.2,0.0432195]
[1751682794878,0.20797988,2503.5,2503.4,3.99456738]
[1751682795041,0.57366101,2503.5,2503.2,0.0432195]
[1751682795238,0.36568113,2503.4,2503.2,0.0432195]
[1751682795467,0.36568113,2503.3,2503.2,4.03805962]
[1751682795974,0.36568113,2503.3,2503.2,14.03805962]
[1751682796184,0.36568113,2503.3,2503.2,0.0432195]
[1751682796370,2.42168113,2503.3,2503.2,0.0432195]
[1751682796742,0.36568113,2503.3,2503.2,0.0432195]
[1751682796942,10.80868113,2503.3,2503.2,0.0432195]
[1751682797242,0.36568113,2503.3,2503.2,0.0432195]
[1751682797446,0.86568113,2503.3,2503.2,14.03810604]
[1751682797752,0.36568113,2503.3,2503.2,14.03810604]
[1751682798187,0.20797988,2503.5,2503.2,8.03299258]
[1751682798502,1e-08,2503.5,2503.4,13.99456738]
[1751682798706,0.7664,2505.1,2504.7,3.99243108]
[1751682798869,9.591,2505.4,2503.8,3.99387919]
[1751682798870,2.057,2505.0,2504.1,0.55]
[1751682799216,2.057,2505.7,2504.7,10.0]
[1751682799371,2.057,2505.7,2505.6,3.99106002]
[1751682799567,2.057,2506.1,2505.9,3.99051902]
[1751682799885,2.057,2506.1,2506.0,3.99042298]
[1751682801303,0.0475527,2506.9,2506.7,3.9893013]
[1751682801484,0.0475527,2506.9,2506.1,1.1672423]
[1751682801672,0.0475527,2506.9,2506.5,3.98948968]
[1751682802004,0.0475527,2506.9,2506.1,1.1672423]
[1751682802185,0.0475527,2506.9,2506.8,3.98914951]
[1751682802365,0.0475527,2506.9,2506.7,3.98926]
[1751682802574,0.0475527,2506.9,2506.2,4.505863]
[1751682802575,0.0475527,2506.9,2506.8,3.98914951]
[1751682804406,0.0475527,2506.9,2506.2,0.51575846]
[1751682804578,0.0475527,2506.9,2506.4,3.98968448]
[1751682804784,0.0475527,2506.9,2506.4,5.28472877]
[1751682805107,0.0475527,2506.9,2506.4,5.28476814]
[1751682805311,0.0475527,2506.9,2506.5,3.98962696]
[1751682805609,0.5,2506.7,2506.5,3.98962696]
[1751682805807,0.5,2506.7,2506.6,3.9894678]
[1751682807107,0.5,2506.7,2506.4,5.28478739]
[1751682807303,0.5,2506.7,2506.6,3.9894678]
[1751682807610,0.5,2506.7,2506.6,4.91689332]
[1751682807793,0.0475527,2506.9,2506.8,3.98914951]
[1751682808166,0.0475527,2506.9,2506.8,4.029041]
[1751682808772,0.0475527,2506.9,2506.8,4.839741]
[1751682809274,0.0475527,2506.9,2506.8,4.79984951]
[1751682809479,0.0475527,2506.9,2506.8,6.61510708]
[1751682810297,0.41120505,2506.9,2506.8,6.61510708]
[1751682811178,0.4113051,2506.9,2506.8,6.61510708]
[1751682811375,2.13,2507.8,2507.6,3.98785259]
[1751682811599,0.3638478,2507.7,2507.6,3.98787685]
[1751682811780,0.3638478,2507.7,2507.6,4.02775561]
[1751682812103,0.3638478,2507.7,2507.6,3.98787685]
[1751682813009,0.3638478,2507.7,2506.9,13.98899038]
[1751682813177,4.07820208,2507.9,2507.3,8.428]
[1751682813373,0.0907722,2507.9,2507.4,3.98816978]
[1751682813570,0.0907722,2507.9,2507.4,0.03988194]
[1751682813775,0.0907722,2507.9,2507.8,3.98755881]
[1751682814571,0.0907722,2507.9,2507.8,12.41655881]
[1751682814774,0.0907722,2507.9,2507.8,14.13658491]
[1751682818106,0.0907722,2507.9,2507.8,5.70758491]
[1751682818410,0.0907722,2507.9,2507.8,14.12458491]
[1751682819013,0.0907722,2507.9,2507.8,12.40455881]
[1751682820380,0.0907722,2507.9,2507.8,3.98755881]
[1751682820581,0.0907722,2507.9,2507.8,8.408]
[1751682822085,0.0907722,2507.9,2507.7,3.98763542]
[1751682822278,0.0907722,2507.9,2507.6,4.7837932]
[1751682822614,0.0907722,2507.9,2507.7,12.39071772]
[1751682822980,0.0907722,2507.9,2507.8,8.402]
[1751682823310,0.0907722,2507.9,2507.8,8.4]
[1751682824019,0.0907722,2507.9,2507.8,12.38755881]
[1751682824205,0.0907722,2507.9,2507.8,13.62631469]
[1751682826204,0.0907722,2507.9,2507.8,12.38755881]
[1751682828201,0.45716153,2507.9,2507.8,12.38755881]
[1751682829418,0.0907722,2507.9,2507.8,12.38755881]
[1751682829619,0.45905469,2507.9,2507.8,12.38755881]
[1751682833134,0.0907722,2507.9,2507.8,12.38755881]
[1751682833296,0.46019443,2507.9,2507.3,10.0]
[1751682833501,0.36942223,2507.8,2507.7,3.98771648]
[1751682833816,0.36942223,2507.8,2507.7,12.35871648]
[1751682835028,0.36942223,2507.8,2507.7,3.98771648]
[1751682835211,0.36942223,2507.8,2507.7,12.35671648]
[1751682836816,0.36942223,2507.8,2507.7,13.99117545]
[1751682838250,0.36942223,2507.8,2507.7,12.35671648]
[1751682838403,0.36942223,2507.8,2507.7,12.35371648]
[1751682841123,0.0907722,2507.9,2507.8,3.98755881]
[1751682841317,0.46179817,2507.9,2507.8,3.98755881]
[1751682843742,0.46179817,2507.9,2507.8,12.33755881]
[1751682844452,0.46179817,2507.9,2507.8,13.97008634]
[1751682846660,0.46205063,2507.9,2507.8,13.97008634]
[1751682847534,0.46205063,2507.9,2507.8,14.73138634]
[1751682849246,0.46305063,2507.9,2507.8,14.73138634]
[1751682850940,0.46305063,2507.9,2507.8,24.73138634]
[1751682851745,2.8703,2508.8,2508.4,3.98645731]
[1751682852059,2.8703,2508.8,2508.5,12.31341543]
[1751682853251,2.8703,2508.8,2508.5,8.327]
[1751682853568,6.8562732,2508.8,2508.5,8.327]
[1751682855359,3.98637092,2508.6,2507.8,11.63252753]
[1751682855564,4.75047835,2508.7,2507.9,8.316]
[1751682855861,4.75047835,2508.7,2508.2,3.98683436]
[1751682855862,0.8284418,2508.7,2508.2,3.98683436]
[1751682856029,0.8284418,2508.7,2508.3,8.316]
[1751682856679,0.8284418,2508.7,2508.5,3.98634211]
[1751682856831,0.8284418,2508.7,2508.5,12.30934211]
[1751682857158,0.8284418,2508.7,2508.6,3.98628717]
[1751682857840,0.0641418,2508.7,2508.6,3.98628717]
[1751682858245,0.02,2509.0,2508.9,3.98581051]
[1751682858473,0.02,2509.0,2508.9,12.70339156]
[1751682858637,1e-08,2509.0,2508.9,22.70339156]
[1751682859749,1e-08,2509.0,2508.9,4.38439156]
[1751682860043,1e-08,2509.0,2508.9,12.30581051]
[1751682861576,1e-08,2509.0,2508.9,12.30281051]
[1751682862859,1e-08,2509.0,2508.9,12.30481051]
[1751682865074,1e-08,2509.0,2508.9,12.29481051]
[1751682866790,1e-08,2509.0,2508.9,23.09231051]
[1751682867072,1e-08,2509.0,2508.9,26.94120299]
[1751682868346,1e-08,2509.0,2508.9,18.63220299]
[1751682868670,1e-08,2509.0,2508.9,29.01120299]
[1751682871890,1e-08,2509.0,2508.9,18.63220299]
[1751682872087,1e-08,2509.0,2508.9,29.01020299]
[1751682872581,1e-08,2509.0,2508.9,29.00920299]
[1751682874486,1e-08,2509.5,2508.9,29.00920299]
[1751682874688,1e-08,2509.5,2509.4,14.79341633]
[1751682874980,1e-08,2509.5,2509.4,23.09441633]
[1751682876757,1e-08,2509.8,2509.7,14.79293998]
[1751682876963,1e-08,2509.8,2509.7,23.08993998]
[1751682877177,1e-08,2509.8,2509.7,24.72246751]
[1751682878085,1e-08,2509.8,2509.7,16.42546751]
[1751682878259,1e-08,2509.8,2509.7,26.79846751]
[1751682883483,1e-08,2509.8,2509.7,16.42546751]
[1751682883683,1e-08,2509.8,2509.7,26.78746751]
[1751682885588,1e-08,2509.9,2509.8,3.98438122]
[1751682885905,1e-08,2510.1,2510.0,14.75986374]
[1751682886580,1e-08,2510.1,2510.0,25.11786374]
[1751682887988,1e-08,2510.4,2510.3,3.98358761]
[1751682888190,1e-08,2510.4,2510.3,34.70413075]
[1751682888405,1e-08,2510.4,2510.3,38.55302323]
[1751682889202,0.02,2510.9,2510.8,3.98279432]
[1751682889505,0.02,2510.9,2510.8,23.03459432]
[1751682889725,1e-08,2510.9,2510.8,23.03459432]
[1751682889876,1e-08,2510.9,2510.8,24.45029664]
[1751682890183,1e-08,2510.9,2510.8,26.52029664]
[1751682892810,1e-08,2510.9,2510.8,16.17429664]
[1751682893012,1e-08,2510.9,2510.8,26.51729664]
[1751682895079,1e-08,2510.9,2510.8,26.51129664]
[1751682896080,1e-08,2510.9,2510.8,26.50929664]
[1751682897887,0.02,2511.8,2511.7,3.9813672]
[1751682898214,0.02,2511.8,2511.6,3.98137366]
[1751682898413,0.02,2511.8,2511.7,12.2543672]
[1751682898991,0.02,2511.8,2511.7,8.273]
[1751682899193,0.02,2511.8,2511.7,12.2543672]
[1751682907903,0.02,2512.0,2511.9,3.9810502]
[1751682908110,0.02,2512.0,2511.9,22.2360502]
[1751682908696,0.002,2512.3,2512.2,3.98057479]
[1751682908897,0.002,2512.3,2512.2,22.23557479]
[1751682909529,0.7953,2512.9,2512.8,3.97962432]
[1751682909825,0.7953,2512.9,2512.8,12.23462432]
[1751682910129,0.7953,2512.9,2512.7,3.97977728]
[1751682910425,0.7953,2512.9,2512.8,12.23562432]
[1751682911059,0.7953,2512.9,2512.8,12.23762432]
[1751682912048,0.8268,2513.1,2513.0,3.9793076]
[1751682912218,0.8268,2513.1,2513.0,12.2363076]
[1751682912848,0.8268,2513.1,2513.0,13.85788133]
[1751682913016,0.25,2513.2,2513.1,3.97914925]
[1751682914522,0.5,2513.2,2513.0,10.0]
[1751682914718,0.5,2513.2,2513.1,8.255]
[1751682915857,0.5,2513.2,2513.1,12.23414925]
[1751682917523,0.502,2513.2,2513.1,12.23414925]
[1751682918459,0.502,2513.2,2513.1,8.255]
[1751682918850,0.502,2513.2,2513.1,12.23414925]
[1751682919049,0.502,2513.2,2513.1,3.97914925]
[1751682919257,0.502,2513.2,2513.1,8.249]
[1751682919554,0.502,2513.2,2513.1,12.22814925]
[1751682920929,0.502,2513.2,2513.1,13.84889367]
[1751682921521,0.252,2513.2,2513.1,13.84889367]
[1751682924641,0.252,2513.2,2513.1,13.83989367]
[1751682929965,0.252,2513.2,2513.1,5.59989367]
[1751682930165,0.252,2513.2,2513.1,13.82589367]
[1751682930765,0.252,2513.2,2513.1,13.82489367]
[1751682933685,0.252,2513.2,2513.1,5.59989367]
[1751682933993,0.252,2513.2,2513.1,12.19914925]
[1751682934199,0.7921,2513.1,2512.7,10.0]
[1751682934360,0.7921,2513.1,2512.6,4.74]
[1751682934361,0.7921,2513.1,2512.8,8.224]
[1751682934771,4.77136023,2513.1,2512.5,3.98006866]
[1751682934969,4.77136023,2513.1,2512.6,8.224]
[1751682935173,3.97931063,2513.0,2512.6,8.224]
[1751682935689,0.7921,2512.7,2512.4,0.001]
[1751682935872,3.98001758,2512.6,2512.5,8.227]
[1751682938589,0.7921,2512.7,2512.5,8.227]
[1751682939490,0.7921,2512.7,2512.5,12.20705597]
[1751682940194,0.7921,2512.7,2512.5,8.227]
[1751682941700,0.7921,2512.7,2512.5,8.227]
[1751682942404,0.7921,2512.7,2512.5,12.20709252]
[1751682942702,0.7921,2512.7,2512.6,3.97994109]
[1751682942873,0.8112,2513.0,2512.6,10.0]
[1751682943073,1.0632,2513.2,2512.8,3.97962432]
[1751682943273,1.0632,2513.2,2512.9,8.218]
[1751682943868,1.0632,2513.2,2513.1,3.97914925]
[1751682944096,0.252,2513.2,2513.1,9.43671492]
[1751682944318,0.252,2513.2,2513.1,13.41586417]
[1751682946593,0.252,2513.2,2513.1,9.43671492]
[1751682946966,0.252,2513.2,2513.1,8.215]
[1751682947197,4.73273942,2513.1,2512.5,5.59879228]
[1751682947408,4.73273942,2513.1,2512.6,12.19692274]
[1751682948323,0.252,2513.2,2512.7,3.9797827]
[1751682948511,0.252,2513.2,2512.8,8.216]
[1751682949106,0.252,2513.2,2512.8,13.81318414]
[1751682949312,0.252,2513.2,2512.8,13.8131173]
[1751682949313,0.5,2513.0,2512.8,13.8131173]
[1751682949930,0.5,2513.0,2512.9,3.97946595]
[1751682950098,0.252,2513.2,2513.1,3.97914925]
[1751682950427,0.252,2513.2,2513.1,12.19214925]
[1751682951204,0.252,2513.2,2513.1,9.83014355]
[1751682952609,0.252,2513.2,2513.1,13.8092928]
[1751682953433,0.252,2513.2,2513.1,9.83014355]
[1751682954730,0.252,2513.2,2513.1,13.8092928]
[1751682955329,0.752,2513.2,2513.1,13.8092928]
[1751682955528,0.252,2513.2,2513.1,9.83014355]
[1751682955704,0.252,2513.2,2513.1,13.8092928]
[1751682955903,0.252,2513.2,2513.1,9.83014355]
[1751682956125,0.252,2513.2,2513.1,8.213]
[1751682958527,0.252,2513.2,2513.0,3.97929114]
[1751682958733,0.252,2513.2,2513.1,8.197]
[1751682959300,0.252,2513.2,2513.1,12.17614925]
[1751682960933,0.3352388,2513.2,2513.1,12.17614925]
[1751682961236,0.3352388,2513.2,2513.1,13.8684744]
[1751682961620,0.3352388,2513.2,2513.1,5.6714744]
[1751682961848,0.3352388,2513.2,2513.1,13.8664744]
[1751682962032,0.3352388,2513.2,2513.1,13.8654744]
[1751682970438,0.3352388,2513.2,2513.1,5.6714744]
[1751682970659,0.3352388,2513.2,2513.1,13.8524744]
[1751682971346,0.3352388,2513.2,2513.1,13.8514744]
[1751682973443,0.3352388,2513.2,2513.1,21.46211838]
[1751682973659,0.3352388,2513.2,2513.1,31.46211838]
[1751682976459,0.27,2513.4,2513.3,3.97883261]
[1751682976743,0.27,2513.4,2513.3,16.00072509]
[1751682977757,0.0630518,2513.8,2513.6,3.97833381]
[1751682978052,0.0630518,2513.8,2513.7,22.91219946]
[1751682979240,0.0630518,2513.8,2513.7,22.15019946]
[1751682983354,0.0630518,2513.8,2513.7,22.14019946]
[1751682983665,0.0630518,2513.8,2513.7,23.50624575]
[1751682984661,0.0630518,2513.8,2513.7,15.34424575]
[1751682984865,0.0630518,2513.8,2513.7,22.13819946]
[1751682985647,0.0630518,2513.8,2513.7,8.16]
[1751682985853,0.0630518,2513.8,2513.7,12.13819946]
[1751682987080,0.0630518,2513.8,2513.3,3.84889248]
[1751682987297,4.78957772,2513.7,2513.4,8.159]
[1751682987496,0.8113,2513.6,2513.5,8.159]
[1751682988063,0.8743518,2513.8,2513.5,8.159]
[1751682988265,0.8743518,2513.8,2513.7,3.97819946]
[1751682988461,0.0630518,2513.8,2513.7,12.14319946]
[1751682989157,0.0630518,2513.8,2513.7,22.90609946]
[1751682989357,0.0630518,2513.8,2513.7,25.7956445]
[1751682998092,0.0630518,2513.8,2513.7,17.6306445]
[1751682998310,0.0630518,2513.8,2513.7,25.7856445]
[1751682998610,0.0630518,2513.8,2513.7,16.8677445]
[1751682998909,0.0630518,2513.8,2513.7,25.0207445]
[1751683000010,0.0630518,2513.8,2513.7,16.8677445]
[1751683000189,0.0630518,2513.8,2513.7,25.0177445]
[1751683005616,0.0630518,2513.8,2513.7,16.8677445]
[1751683005818,0.0630518,2513.8,2513.7,25.0097445]
[1751683007118,0.8313,2514.3,2513.7,25.0097445]
[1751683007119,0.8313,2514.3,2514.2,3.97740832]
[1751683007324,0.02,2514.3,2514.2,12.11640832]
[1751683014122,0.02,2514.3,2514.2,22.90660832]
[1751683015122,1e-08,2514.4,2514.3,13.97725012]
[1751683015426,0.7953,2514.9,2514.8,3.97645936]
[1751683015611,0.7953,2514.9,2514.8,12.11345936]
[1751683016306,0.02,2514.9,2514.8,12.11345936]
[1751683017329,0.0404516,2514.9,2514.8,12.11345936]
[1751683018127,0.0404516,2514.9,2514.8,13.72246475]
[1751683018332,0.0404516,2514.9,2514.8,13.92086475]
[1751683018529,0.0404516,2514.9,2514.8,23.92086475]
[1751683019129,0.081138,2515.4,2514.9,13.97630124]
[1751683019901,1e-08,2515.0,2514.9,13.97630124]
[1751683020102,1e-08,2515.0,2514.9,15.69495449]
[1751683021300,0.002,2515.9,2515.8,3.97487876]
[1751683021526,0.002,2515.9,2515.8,12.11087876]
[1751683024243,0.002,2515.9,2515.8,22.11087876]
[1751683024446,0.002,2515.9,2515.8,24.99856845]
[1751683024624,0.002,2515.9,2515.8,25.80646845]
[1751683025228,0.002,2515.9,2515.8,17.67046845]
[1751683025441,0.002,2515.9,2515.8,27.80246845]
[1751683025954,1e-08,2515.9,2515.8,27.80246845]
[1751683027340,1e-08,2516.1,2516.0,3.97456279]
[1751683027521,1e-08,2516.1,2516.0,33.65760946]
[1751683027724,1e-08,2516.1,2516.0,33.61786384]
[1751683029159,1e-08,2516.1,2516.0,25.20832769]
[1751683030555,1e-08,2516.1,2516.0,17.07632769]
[1751683030761,1e-08,2516.1,2516.0,25.20832769]
[1751683031272,1e-08,2516.1,2516.0,17.88422769]
[1751683031478,1e-08,2516.1,2516.0,28.01422769]
[1751683032269,1e-08,2516.1,2516.0,27.20632769]
[1751683032455,1e-08,2516.1,2516.0,17.07632769]
[1751683032646,1e-08,2516.1,2516.0,27.20632769]
[1751683032848,1e-08,2516.1,2516.0,34.80696384]
[1751683033468,1e-08,2516.1,2516.0,35.62896384]
[1751683034367,1e-08,2516.3,2516.2,13.97424688]
[1751683034536,1e-08,2516.3,2516.2,22.10524688]
[1751683034738,0.063138,2516.9,2516.8,3.97329942]
[1751683034945,0.063138,2516.9,2516.8,12.10429942]
[1751683036877,0.063138,2516.9,2516.8,22.10429942]
[1751683037076,0.063138,2516.9,2516.8,23.85395267]
[1751683037657,0.063138,2516.9,2516.8,25.85095267]
[1751683038388,1.0463,2517.4,2516.8,25.85095267]
[1751683038389,1.0463,2517.4,2517.3,3.97251022]
[1751683038688,1.0463,2517.4,2517.3,12.10251022]
[1751683040185,1.0463,2517.4,2516.9,3.97314156]
[1751683040386,1.0463,2517.4,2517.1,3.9727996]
[1751683040580,1.0463,2517.4,2517.1,3.97282587]
[1751683040973,1.0463,2517.4,2517.0,12.1029467]
[1751683041171,1.0463,2517.4,2517.1,3.97281123]
[1751683042372,1.0463,2517.4,2517.2,8.129]
[1751683042685,1.0463,2517.4,2517.2,12.10166261]
[1751683043059,1.0463,2517.4,2517.2,8.129]
[1751683043265,1.0463,2517.4,2517.2,12.10159865]
[1751683044390,1.0463,2517.4,2516.9,1.49007948]
[1751683044567,0.7838,2517.3,2517.0,8.128]
[1751683044769,0.7838,2517.3,2517.1,8.128]
[1751683045877,0.7996,2517.2,2516.8,3.97319763]
[1751683046079,0.7996,2517.2,2516.4,13.97389894]
[1751683046291,0.7496,2517.2,2516.8,3.97327608]
[1751683046472,0.7496,2517.2,2516.9,8.128]
[1751683047363,0.7496,2517.2,2516.6,3.97355852]
[1751683047701,0.7496,2517.2,2516.7,8.128]
[1751683047702,7.60063615,2517.1,2516.7,8.128]
[1751683047883,3.97298755,2517.0,2516.7,8.128]
[1751683048087,3.97298755,2517.0,2516.8,8.128]
[1751683048261,3.92314546,2516.9,2516.8,8.128]
[1751683048466,4.78034652,2517.0,2516.8,8.128]
[1751683048975,0.35715941,2516.9,2516.8,8.128]
[1751683049177,1.15675941,2516.9,2516.8,8.128]
[1751683050895,1.10875941,2516.9,2516.8,8.128]
[1751683051798,1.10875941,2516.9,2516.8,12.10129942]
[1751683052101,1.10875941,2516.9,2516.8,8.128]
[1751683052271,1.10875941,2516.9,2516.8,12.10129942]
[1751683052470,1.05875941,2516.9,2516.8,12.10129942]
[1751683055800,1.00875941,2516.9,2516.8,12.10129942]
[1751683056201,0.20915941,2516.9,2516.8,13.70877283]
[1751683056385,0.002,2516.9,2516.8,13.70877283]
[1751683059882,0.002,2516.9,2516.8,15.70677283]
[1751683060083,0.002,2516.9,2516.8,25.70677283]
[1751683060471,1e-08,2516.9,2516.8,25.70677283]
[1751683064287,1e-08,2516.9,2516.8,23.70777283]
[1751683067521,1e-08,2516.9,2516.8,23.70677283]
[1751683068020,1e-08,2516.9,2516.8,15.58177283]
[1751683068525,1e-08,2516.9,2516.8,23.70777283]
[1751683071608,1e-08,2516.9,2516.8,15.58177283]
[1751683071815,1e-08,2516.9,2516.8,23.70777283]
[1751683073024,1e-08,2516.9,2516.8,15.58177283]
[1751683073323,1e-08,2516.9,2516.8,23.70777283]
[1751683074719,1e-08,2516.9,2516.8,15.58177283]
[1751683074919,1e-08,2516.9,2516.8,12.10029942]
[1751683076826,1e-08,2516.9,2516.8,3.97429942]
[1751683077032,1e-08,2516.9,2516.8,12.10029942]
[1751683077320,1e-08,2516.9,2516.8,8.127]
[1751683077508,0.75710001,2516.9,2516.8,0.001]
[1751683077703,2.00202794,2516.9,2516.8,0.001]
[1751683081113,2.00210084,2516.9,2516.8,0.001]
[1751683081644,1.12913138,2516.9,2516.8,3.97429942]
[1751683081814,1.12913138,2516.9,2516.8,0.001]
[1751683083722,1.12902228,2516.9,2516.8,0.001]
[1751683084039,1.12902228,2516.9,2516.8,3.97429942]
[1751683085433,0.37192228,2516.9,2516.8,3.97429942]
[1751683086024,0.37192228,2516.9,2516.8,0.001]
[1751683086741,0.37182779,2516.9,2516.8,0.001]
[1751683087317,1e-08,2516.9,2516.8,0.001]
[1751683087620,0.37182779,2516.9,2516.8,3.97429942]
[1751683087937,1e-08,2516.9,2516.8,3.97429942]
[1751683088140,0.37182779,2516.9,2516.8,3.97429942]
[1751683088740,1e-08,2516.9,2516.8,3.97429942]
[1751683088941,0.37182779,2516.9,2516.8,3.97429942]
[1751683089110,1e-08,2516.9,2516.8,3.97429942]
[1751683089316,0.37182779,2516.9,2516.8,3.97429942]
[1751683089517,1e-08,2516.9,2516.8,3.97429942]
[1751683089718,0.37182779,2516.9,2516.8,3.97429942]
[1751683089938,1e-08,2516.9,2516.8,3.97429942]
[1751683090139,0.37182779,2516.9,2516.8,12.09929942]
[1751683090344,0.37182779,2516.9,2516.8,8.126]
[1751683090645,4.74460769,2517.1,2516.8,8.126]
[1751683090812,5.61632533,2517.1,2516.8,8.126]
[1751683091013,1.64341764,2517.1,2516.8,8.126]
[1751683091836,5.6163023,2517.1,2516.8,0.001]
[1751683092079,12.34522081,2517.1,2516.8,8.126]
[1751683092254,0.8149,2516.9,2516.8,8.126]
[1751683093857,4.78804156,2516.9,2516.8,0.001]
[1751683094047,6.42420784,2516.9,2516.8,0.001]
[1751683094845,6.37420784,2516.9,2516.8,0.001]
[1751683096348,2.40106628,2516.9,2516.8,0.001]
[1751683096960,2.35106628,2516.9,2516.8,0.001]
[1751683098263,0.7149,2516.9,2516.8,0.001]
[1751683100063,0.6649,2516.9,2516.8,0.001]
[1751683100266,12.23867771,2516.9,2516.8,0.001]
[1751683101039,8.26753615,2516.9,2516.8,0.001]
[1751683101374,0.6669,2516.9,2516.8,0.001]
[1751683102656,1.03888074,2516.9,2516.8,0.001]
[1751683102968,0.98888074,2516.9,2516.8,0.001]
[1751683106580,2.64502157,2516.9,2516.8,0.001]
[1751683106778,0.98888074,2516.9,2516.8,0.001]
[1751683117153,4.9620223,2516.9,2516.8,0.001]
[1751683118765,4.96266082,2516.9,2516.8,0.001]
[1751683119083,4.96267265,2516.9,2516.8,0.001]
[1751683119287,6.61890638,2516.9,2516.8,0.001]
[1751683119788,0.7765,2516.5,2516.1,12.09637551]
[1751683120086,0.37263109,2516.4,2516.1,12.09637551]
[1751683120290,0.37263109,2516.3,2516.1,12.09637551]
[1751683120508,0.37253303,2516.2,2516.1,13.77892811]
[1751683120656,0.37253303,2516.2,2516.1,14.52972811]
[1751683121559,0.37253303,2516.8,2516.5,3.97364134]
[1751683121858,0.37253303,2516.7,2516.6,8.121]
[1751683122255,0.37253303,2516.7,2516.6,12.09461519]
[1751683122565,0.37253303,2516.7,2516.6,13.70145174]
[1751683123790,0.37253303,2516.7,2516.6,9.72783655]
[1751683123992,0.37253303,2516.7,2516.6,8.121]
[1751683124488,0.37253303,2516.7,2516.6,12.09461519]
[1751683126201,0.37253303,2516.7,2516.6,8.121]
[1751683127367,0.37253303,2516.7,2516.3,0.8086]
[1751683127566,0.37248271,2516.6,2516.4,8.12]
[1751683127797,0.37248271,2516.5,2516.4,8.12]
[1751683128109,0.37248271,2516.5,2516.2,3.97416978]
[1751683128404,0.37250003,2516.4,2516.3,12.09308716]
[1751683133905,0.37250003,2516.4,2516.3,12.09408716]
[1751683134713,8.77529223,2517.7,2516.3,12.09408716]
[1751683134878,7.60063615,2516.8,2516.4,10.0]
[1751683135074,7.60063615,2516.8,2516.6,10.0]
[1751683135273,11.5739464,2516.8,2516.7,8.118]
[1751683135574,11.57400779,2516.8,2516.7,8.118]
[1751683136515,3.97337164,2516.8,2516.7,8.118]
[1751683138002,4.73377164,2516.8,2516.7,8.118]
[1751683139385,6.56402131,2516.8,2516.7,8.118]
[1751683140629,7.06402131,2516.8,2516.7,8.118]
[1751683143815,7.06402131,2516.8,2516.7,8.117]
[1751683144523,3.09064967,2516.8,2516.7,8.117]
[1751683145527,7.06394909,2516.8,2516.7,8.117]
[1751683146514,3.09064967,2516.8,2516.7,8.117]
[1751683146824,3.46330614,2516.8,2516.7,8.117]
[1751683147927,0.87265647,2516.8,2516.7,8.117]
[1751683148143,0.87265647,2516.8,2516.7,8.116]
[1751683150831,0.87465647,2516.8,2516.7,8.116]
[1751683161030,0.87465647,2516.8,2516.6,10.0]
[1751683161330,0.502,2516.8,2516.7,8.113]
[1751683161509,0.87479314,2516.8,2516.7,8.113]
[1751683162617,0.87479314,2516.8,2516.7,12.0864573]
[1751683163023,0.87479314,2516.8,2516.7,13.76835076]
[1751683163736,0.37479314,2516.8,2516.7,24.59065076]
[1751683164506,0.37462354,2516.8,2516.7,24.59065076]
[1751683166136,0.002,2516.8,2516.7,24.59065076]
[1751683168047,1e-08,2516.8,2516.7,24.59065076]
[1751683168706,1e-08,2516.8,2516.7,32.19128691]
[1751683173352,1e-08,2516.8,2516.7,36.93128691]
[1751683178254,1e-08,2516.8,2516.7,28.81828691]
[1751683178455,1e-08,2516.8,2516.7,21.21765076]
[1751683178701,1e-08,2516.8,2516.7,21.31265076]
[1751683178858,1e-08,2516.8,2516.7,31.31265076]
[1751683179356,1e-08,2516.8,2516.7,29.32365076]
[1751683179984,1e-08,2516.8,2516.7,21.21765076]
[1751683180288,1e-08,2516.8,2516.7,6.47765076]
[1751683180455,1e-08,2516.8,2516.7,4.7957573]
[1751683180796,1e-08,2516.8,2516.7,22.9017573]
[1751683181460,1e-08,2516.8,2516.7,22.0794573]
[1751683182288,1e-08,2516.8,2516.6,0.001]
[1751683182460,1e-08,2516.8,2516.7,8.106]
[1751683183093,1e-08,2516.8,2516.6,0.001]
[1751683183458,1e-08,2516.8,2516.7,8.106]
[1751683183956,0.8171,2516.7,2516.6,0.001]
[1751683184170,0.8171,2516.7,2516.6,8.107]
[1751683184392,0.8171,2516.7,2516.6,18.107]
[1751683184757,0.8171,2516.7,2516.6,8.107]
[1751683185290,4.7905573,2516.7,2516.6,0.001]